bitfinex-derivatives/quotes_ETHF0:USTF0_20250520
["timestamp","ask_amount","ask_price","bid_price","bid_amount"]
[1747776596636,3.2078,2498.7,2497.6,4.24235072]
[1747776596928,3.2078,2498.7,2497.3,5.16891487]
[1747776596929,0.80048,2497.5,2497.4,2.68750998]
[1747776597132,3.2078,2497.5,2497.4,2.68750998]
[1747776597331,0.00600072,2497.7,2497.4,8.98310998]
[1747776597728,0.00600072,2497.7,2497.5,15.156]
[1747776598022,0.00600072,2497.7,2497.6,1.2956]
[1747776598232,0.80028,2498.2,2497.6,1.2956]
[1747776598535,0.80033,2498.0,2497.6,1.2956]
[1747776598743,3.2078,2498.1,2497.6,1.2956]
[1747776598938,3.2078,2498.5,2497.7,15.164]
[1747776599121,0.00600072,2498.3,2497.9,0.00600072]
[1747776599327,0.00600072,2498.3,2497.9,1.41720072]
[1747776599328,0.80025,2498.2,2497.9,1.41720072]
[1747776599530,0.80029,2498.1,2497.9,1.41720072]
[1747776599730,0.00600072,2498.3,2497.9,1.41720072]
[1747776599924,0.8003,2498.1,2497.9,1.41720072]
[1747776600133,0.80032,2498.0,2497.9,1.41720072]
[1747776600325,0.80032,2498.0,2497.9,16.58120072]
[1747776600529,0.80032,2498.0,2497.9,21.58120072]
[1747776601530,3.2078,2498.2,2497.9,21.58120072]
[1747776601924,0.80029,2498.1,2497.9,0.00600072]
[1747776602128,1.356,2498.1,2497.9,0.00600072]
[1747776602327,3.3576,2498.1,2497.9,0.00600072]
[1747776602533,3.3576,2498.1,2495.9,3.2078]
[1747776602534,3.2078,2497.6,2495.9,3.2078]
[1747776602731,3.2078,2496.6,2496.1,1.3676]
[1747776603123,3.2078,2496.3,2496.1,1.3676]
[1747776603324,3.2078,2496.6,2496.1,16.5366]
[1747776603530,0.00600072,2496.6,2495.6,1.9581]
[1747776603734,0.00600072,2496.6,2495.8,1.3676]
[1747776603937,3.21380072,2496.6,2495.8,1.3676]
[1747776604325,3.2078,2496.3,2496.0,0.08486477]
[1747776604536,0.00600072,2496.6,2496.1,1.4172]
[1747776604734,0.00600072,2496.6,2496.2,15.176]
[1747776605027,0.00600072,2496.6,2496.3,16.5932]
[1747776605340,0.00600072,2496.6,2496.5,3.2078]
[1747776605536,3.2078,2497.1,2496.5,8.2078]
[1747776605938,3.2078,2497.1,2496.6,2.3896]
[1747776606133,3.2078,2497.1,2496.7,1.4172]
[1747776606333,3.2078,2497.1,2496.8,15.176]
[1747776606531,3.2078,2497.1,2496.9,1.4172]
[1747776606734,0.00600072,2497.2,2497.0,3.2078]
[1747776606941,3.2078,2497.7,2497.1,1.4172]
[1747776607427,3.2078,2497.4,2496.7,0.00600072]
[1747776607633,3.2078,2497.1,2496.8,1.3388]
[1747776608033,1.4021,2497.0,2496.8,1.3388]
[1747776608234,3.404585,2497.0,2496.8,1.3388]
[1747776608441,3.404585,2497.0,2496.7,0.00600072]
[1747776608641,3.404585,2497.0,2496.7,1.34480072]
[1747776609743,3.2078,2496.8,2496.7,1.34480072]
[1747776611247,10.210405,2496.8,2496.0,0.08486477]
[1747776611440,3.2078,2496.1,2496.0,1.36876477]
[1747776612141,3.2078,2496.4,2496.0,1.36876477]
[1747776612343,3.2078,2496.4,2496.0,1.37476549]
[1747776614050,3.2078,2496.4,2496.0,2.17571549]
[1747776614241,3.2078,2496.4,2496.0,1.37476549]
[1747776615446,3.2078,2496.4,2496.1,0.9626]
[1747776615647,3.2078,2496.7,2496.2,1.3793]
[1747776616744,3.2078,2497.0,2496.4,3.2078]
[1747776616944,0.00600072,2497.2,2496.9,0.80065]
[1747776617141,3.2078,2497.8,2497.0,18.4969]
[1747776617347,0.80033,2498.0,2497.3,0.80053]
[1747776617650,3.2078,2498.1,2497.5,3.2078]
[1747776617844,3.2078,2498.1,2497.6,16.223]
[1747776618048,3.2078,2498.1,2497.7,1.2833]
[1747776618350,0.00600072,2498.1,2497.7,2.08971072]
[1747776618544,0.00600072,2498.1,2497.8,2.08368]
[1747776618745,0.00600072,2498.1,2497.8,1.2833]
[1747776619041,0.00600072,2498.1,2497.8,9.4911]
[1747776619445,0.00600072,2498.1,2497.8,6.2833]
[1747776619749,0.00600072,2498.1,2498.0,0.80032]
[1747776620143,3.2078,2498.5,2498.0,5.0]
[1747776620448,0.80011,2498.7,2498.3,0.80021]
[1747776620644,0.80011,2498.7,2498.4,1.3625]
[1747776620949,0.80009,2498.7,2498.4,1.3625]
[1747776621150,0.80607072,2498.8,2498.4,2.16266]
[1747776621338,0.80607072,2498.8,2498.5,0.80016]
[1747776621646,0.80607072,2498.8,2498.6,1.3625]
[1747776622152,0.00600072,2498.8,2498.6,17.5835]
[1747776622341,0.00600072,2498.8,2498.7,1.3625]
[1747776622542,0.00600072,2498.8,2498.7,2.16259]
[1747776622747,3.2078,2499.3,2498.8,0.80004]
[1747776622946,3.2078,2499.9,2498.9,4.5786]
[1747776623251,0.79975,2499.8,2499.4,0.79986]
[1747776623440,0.79978,2499.7,2499.5,1.3708]
[1747776623638,1.3771,2499.8,2499.5,1.3708]
[1747776623842,0.00600072,2499.9,2499.6,0.79979]
[1747776624144,3.2078,2499.8,2499.7,1.3708]
[1747776624548,0.00600072,2499.9,2499.7,2.17057]
[1747776624751,0.00600072,2499.9,2499.8,0.79974]
[1747776624948,0.00600072,2499.9,2499.8,2.17054]
[1747776625352,0.00600072,2499.9,2499.8,18.38854]
[1747776626654,0.00600072,2499.9,2499.8,23.38854]
[1747776628952,0.00600072,2499.9,2499.8,26.59634]
[1747776633260,1.3771,2500.5,2500.3,0.79955]
[1747776633462,2.17664,2500.5,2500.4,0.79955]
[1747776633768,1.3771,2500.5,2500.4,0.79955]
[1747776634359,1.3771,2500.5,2500.4,2.10405]
[1747776634557,1.3771,2500.5,2500.4,1.3045]
[1747776634757,1.3771,2500.5,2500.4,2.10405]
[1747776635956,3.2078,2500.6,2500.5,0.79952]
[1747776636156,3.2078,2500.6,2500.5,2.17332]
[1747776636355,0.00600072,2500.7,2500.5,2.17332]
[1747776636356,0.00600072,2500.7,2500.6,0.79948]
[1747776636562,0.80546072,2500.7,2500.5,1.3738]
[1747776636859,0.80546072,2500.7,2500.6,0.79948]
[1747776636860,0.80545072,2500.7,2500.6,0.79948]
[1747776637366,0.80545072,2500.7,2500.2,16.29759]
[1747776637367,0.79954,2500.5,2500.2,16.29759]
[1747776637665,2.07921,2500.6,2500.2,16.8718]
[1747776637866,0.79953,2500.5,2500.3,1.405]
[1747776638067,1.3456,2500.4,2500.3,2.20458]
[1747776638359,2.14517,2500.4,2500.0,5.20699]
[1747776638564,2.14517,2500.4,2500.3,0.79958]
[1747776639263,0.79959,2500.3,2500.2,16.2946]
[1747776639463,2.14519,2500.3,2500.2,15.495]
[1747776639660,1.3456,2500.3,2500.0,3.2078]
[1747776639863,0.79962,2500.2,2500.1,15.495]
[1747776640362,0.79961,2500.2,2500.1,15.495]
[1747776641264,0.79961,2500.2,2500.1,16.29464]
[1747776641565,0.79961,2500.2,2500.1,15.495]
[1747776641961,0.79961,2500.2,2500.1,16.29464]
[1747776642763,3.2078,2500.4,2499.9,1.99928]
[1747776643064,0.7996,2500.3,2500.2,0.7996]
[1747776643264,2.1307,2500.3,2500.2,0.7996]
[1747776645264,2.13068,2500.3,2500.2,0.7996]
[1747776645469,2.13068,2500.3,2500.2,16.2936]
[1747776645664,2.13068,2500.3,2500.2,0.7996]
[1747776645869,0.79961,2500.2,2500.1,1.39953]
[1747776646165,2.12491,2500.2,2500.1,16.89353]
[1747776646764,2.12491,2500.2,2500.1,1.39953]
[1747776646963,2.12491,2500.2,2500.1,16.89253]
[1747776647560,2.12491,2500.2,2500.1,0.5999]
[1747776647561,4.12479,2500.2,2500.1,0.5999]
[1747776648369,9.12479,2500.2,2500.1,0.5999]
[1747776649364,4.12479,2500.2,2500.1,0.5999]
[1747776649556,9.12479,2500.2,2500.1,0.5999]
[1747776650171,0.7998,2499.7,2499.5,0.79983]
[1747776650365,1.2964,2499.6,2499.5,0.79983]
[1747776652370,2.0962,2499.6,2499.5,0.79983]
[1747776653171,4.09656,2499.6,2499.5,0.79983]
[1747776654067,0.79984,2499.5,2499.4,0.00600072]
[1747776654272,2.18434,2499.5,2499.4,0.00600072]
[1747776654469,2.18434,2499.5,2499.4,0.80587072]
[1747776655269,2.18434,2499.5,2499.4,0.00600072]
[1747776657067,4.18478,2499.5,2499.4,0.00600072]
[1747776657471,4.17360726,2499.5,2499.4,0.00600072]
[1747776657675,2.17316726,2499.5,2499.4,0.00600072]
[1747776659781,2.17316726,2499.5,2499.4,0.80587072]
[1747776660479,2.17316726,2499.5,2499.4,0.00600072]
[1747776661776,2.17316726,2499.5,2499.4,1.38800072]
[1747776662775,4.17360726,2499.5,2499.4,1.38800072]
[1747776663082,4.17360726,2499.5,2499.4,0.00600072]
[1747776663281,2.17316726,2499.5,2499.4,0.00600072]
[1747776663479,4.17360726,2499.5,2499.4,0.00600072]
[1747776664184,1.37332726,2499.5,2499.4,0.80587072]
[1747776664483,2.17316726,2499.5,2499.4,2.11047072]
[1747776664684,0.79984,2499.5,2499.4,2.11044072]
[1747776665181,0.79984,2499.5,2499.4,2.19530549]
[1747776665972,0.79984,2499.5,2499.0,3.2078]
[1747776665973,10.20824,2499.5,2498.9,2.5616936]
[1747776666173,0.8,2499.0,2498.9,1.6007936]
[1747776666388,0.8,2499.0,2498.9,0.2804936]
[1747776666581,2.80084,2499.0,2498.9,0.2804936]
[1747776666992,0.80012,2498.6,2498.5,15.7436]
[1747776667180,0.80011,2498.7,2498.5,15.7436]
[1747776667384,0.80009,2498.7,2498.6,1.3113]
[1747776667584,0.80012,2498.6,2498.5,14.778]
[1747776667981,0.80019,2498.4,2498.3,0.00600072]
[1747776668395,2.80151,2498.4,2498.3,0.00600072]
[1747776670096,7.80151,2498.4,2498.3,0.00600072]
[1747776670292,7.80151,2498.4,2497.7,1.3485]
[1747776670293,0.80038,2497.8,2497.7,1.3485]
[1747776670596,0.80045,2497.6,2497.5,1.3212]
[1747776671004,6.01021,2497.6,2497.5,1.3212]
[1747776671387,0.80051,2497.4,2497.3,0.00600072]
[1747776671798,2.80263,2497.4,2497.3,0.00600072]
[1747776671996,0.80064,2497.0,2496.9,1.6019936]
[1747776672193,6.01088501,2497.0,2496.9,0.2804936]
[1747776672390,0.80073,2496.7,2496.6,3.13364636]
[1747776672587,4.00853,2496.7,2496.6,1.35603583]
[1747776672896,4.00853,2496.7,2496.0,0.28137458]
[1747776672897,0.80093,2496.1,2496.0,0.28137458]
[1747776673494,2.804095,2496.1,2496.0,0.28137458]
[1747776673696,4.211995,2496.1,2496.0,0.28137458]
[1747776673902,0.80099,2495.9,2495.8,0.00600072]
[1747776674198,4.00879,2495.9,2495.8,0.00600072]
[1747776674399,25.799115,2495.9,2495.8,0.00600072]
[1747776674593,0.80102,2495.8,2495.7,1.99451333]
[1747776674797,2.16062,2495.8,2495.7,1.99451333]
[1747776675094,2.16062,2495.8,2495.1,3.24912859]
[1747776675095,0.80121,2495.2,2495.1,3.24912859]
[1747776675398,0.80141,2494.6,2494.2,4.53732256]
[1747776675601,53.09621,2494.6,2494.5,2.31190352]
[1747776675893,45.31358,2494.6,2494.5,1.36444352]
[1747776676088,60.10058,2494.6,2494.5,0.45590352]
[1747776676291,0.8015,2494.3,2494.2,3.62878256]
[1747776676493,4.0093,2494.3,2494.2,3.62878256]
[1747776676698,4.0093,2494.3,2494.2,1.86664256]
[1747776676699,11.01391,2494.3,2494.2,1.86664256]
[1747776676998,0.80176,2493.5,2493.2,8.85379008]
[1747776677194,0.80179,2493.4,2493.3,5.19118467]
[1747776677397,0.80221,2492.1,2492.0,1.84777332]
[1747776677593,0.80221,2492.1,2492.0,0.01160328]
[1747776677794,0.8025,2491.2,2491.0,3.0]
[1747776677996,3.2078,2491.3,2491.1,11.1799251]
[1747776678193,3.2078,2491.3,2491.2,5.16631672]
[1747776678194,4.01027,2491.3,2491.2,5.16631672]
[1747776678395,3.2078,2491.3,2491.2,11.1799251]
[1747776678597,3.2078,2491.3,2491.0,3.0]
[1747776678898,3.2078,2491.3,2491.2,3.78981672]
[1747776678899,5.214825,2491.3,2491.2,3.78981672]
[1747776679197,3.2078,2491.6,2491.2,17.82462948]
[1747776679403,3.2078,2491.6,2491.5,8.02120438]
[1747776679605,15.545,2491.9,2491.5,17.82462948]
[1747776679606,18.7528,2491.9,2491.5,17.82462948]
[1747776679894,15.556,2492.9,2491.8,17.82462948]
[1747776680087,3.2078,2493.0,2492.8,3.78981672]
[1747776680597,38.67671055,2493.4,2492.9,11.1799251]
[1747776680898,0.80184,2493.3,2493.0,9.8034251]
[1747776681096,4.37671055,2493.4,2493.0,6.01360838]
[1747776681097,5.18453366,2493.4,2493.0,6.01360838]
[1747776681393,0.80182,2493.3,2493.2,3.78981672]
[1747776681601,3.21381311,2493.4,2493.3,3.78981672]
[1747776681899,4.01560311,2493.4,2493.3,3.78981672]
[1747776682201,6.02093811,2493.4,2493.3,3.78981672]
[1747776682495,6.02093811,2493.4,2493.3,9.8034251]
[1747776684094,3.21381311,2493.4,2493.3,21.37921686]
[1747776684294,4.01560311,2493.4,2493.3,17.82462948]
[1747776684496,3.21381311,2493.4,2493.3,21.37921686]
[1747776685590,0.00601311,2493.4,2493.3,21.37921686]
[1747776685798,3.2078,2494.0,2493.3,29.58701686]
[1747776685988,0.80157,2494.1,2494.0,3.78981672]
[1747776686195,22.77809,2494.7,2494.2,8.02120438]
[1747776686196,0.80152,2494.3,2494.2,8.02120438]
[1747776686401,0.80147,2494.5,2494.3,3.78981672]
[1747776686592,15.562,2494.7,2494.5,3.78981672]
[1747776686794,0.80137,2494.7,2494.6,19.7533268]
[1747776686989,0.00601311,2494.8,2494.6,19.75413518]
[1747776687189,2.00266,2495.7,2494.7,16.54633518]
[1747776687404,20.77232,2495.9,2495.5,3.78981672]
[1747776687698,0.80108,2495.7,2495.5,3.78981672]
[1747776687902,0.80104,2495.8,2495.7,3.78981672]
[1747776688101,0.80102,2495.8,2495.7,3.78981672]
[1747776688304,7.213295,2496.3,2495.7,3.78981672]
[1747776688305,0.00601311,2496.0,2495.7,16.89312256]
[1747776688599,0.00601311,2496.0,2495.9,12.75651846]
[1747776688797,0.80697311,2496.0,2495.9,16.54633518]
[1747776688995,17.56084,2496.7,2495.9,16.89312256]
[1747776689296,0.80084,2496.4,2496.2,3.2078]
[1747776689703,0.80086,2496.3,2496.2,2.78797972]
[1747776689998,0.80683311,2496.5,2496.4,11.8110211]
[1747776690197,0.80083,2496.4,2496.3,4.73531408]
[1747776690395,0.80083,2496.4,2496.3,0.34678738]
[1747776690599,0.00601311,2496.5,2496.3,16.89312256]
[1747776690801,0.00601311,2496.5,2496.4,16.54633518]
[1747776691005,15.559,2497.0,2496.4,16.54633518]
[1747776691306,0.8007,2496.8,2496.7,11.8110211]
[1747776691798,0.8007,2496.8,2496.7,16.54633518]
[1747776691999,0.8007,2496.8,2496.7,16.89312256]
[1747776692196,15.56501311,2497.0,2496.7,16.89312256]
[1747776692197,0.80069,2496.9,2496.7,16.89312256]
[1747776692401,0.80665311,2497.0,2496.9,2.0022818]
[1747776692805,0.80665311,2497.0,2496.9,6.73759588]
[1747776693100,2.00845812,2497.0,2496.9,6.73759588]
[1747776693297,0.80665311,2497.0,2496.9,6.73759588]
[1747776693497,0.80665311,2497.0,2496.9,15.10558764]
[1747776693897,0.0058,2497.7,2496.9,15.10558764]
[1747776693898,0.80062,2497.1,2496.9,15.10558764]
[1747776694097,17.55709,2497.7,2497.3,2.0022818]
[1747776694301,0.80048,2497.5,2497.4,1.3132]
[1747776694605,0.80048,2497.5,2497.4,3.3154818]
[1747776694806,0.80048,2497.5,2497.4,16.07200026]
[1747776695008,0.80048,2497.5,2497.4,16.41878764]
[1747776695804,0.80048,2497.5,2497.4,16.07200026]
[1747776696395,2.80252,2497.5,2497.4,1e-05]
[1747776696604,0.80054,2497.3,2497.2,0.00601311]
[1747776697003,6.01054,2497.3,2497.2,3.11e-06]
[1747776697202,0.80064,2497.0,2496.9,4.73532196]
[1747776697508,0.80064,2497.0,2496.9,7.88e-06]
[1747776697713,7.21185501,2497.0,2496.2,1.9604]
[1747776697914,0.80086,2496.3,2496.2,2.30718738]
[1747776698104,0.80086,2496.3,2496.2,2.2356518]
[1747776698301,0.80112,2495.5,2495.4,1.0387]
[1747776698810,0.80112,2495.5,2495.4,12.27052552]
[1747776699105,0.80118,2495.3,2495.2,0.00601311]
[1747776699311,0.80137,2494.7,2494.6,4.1566]
[1747776699504,0.80137,2494.7,2494.6,10.52662964]
[1747776699702,0.80137,2494.7,2494.6,15.47832552]
[1747776699898,0.80137,2494.7,2494.6,11.92373814]
[1747776700106,2.00328,2494.9,2494.6,6.02324226]
[1747776700304,0.80141,2494.6,2494.5,1.31031311]
[1747776700704,0.80141,2494.6,2494.5,7.21080899]
[1747776700909,0.80141,2494.6,2494.5,6.43019537]
[1747776701114,0.80141,2494.6,2494.5,0.40695311]
[1747776701317,1.3247,2494.7,2494.5,4.45804537]
[1747776701611,0.8016,2494.0,2493.9,3.2078]
[1747776701911,0.8016,2494.0,2493.5,15.552]
[1747776701912,0.80171,2493.7,2493.6,4.73531408]
[1747776702113,0.80173,2493.6,2493.5,1.1651818]
[1747776702310,0.80179,2493.4,2493.3,0.00601311]
[1747776702615,0.80179,2493.4,2493.3,5.90650899]
[1747776703110,0.80179,2493.4,2493.3,8.42546436]
[1747776703408,0.80179,2493.4,2493.3,5.90650899]
[1747776703910,0.80179,2493.4,2493.3,8.42546436]
[1747776704209,0.80179,2493.4,2493.3,5.90650899]
[1747776704511,0.00601311,2493.8,2493.3,16.98005174]
[1747776704716,0.80769311,2493.8,2493.7,3.68413717]
[1747776704911,2.81270811,2493.8,2493.7,5.90049588]
[1747776705114,2.81270811,2493.8,2493.7,8.76623863]
[1747776705508,0.00601311,2493.8,2493.7,8.76623863]
[1747776705706,0.00601311,2493.8,2493.7,16.97403863]
[1747776705909,0.00601311,2493.8,2493.7,17.77573863]
[1747776706615,3.2078,2494.4,2493.7,16.97403863]
[1747776706814,0.80147,2494.4,2494.3,3.68413717]
[1747776707210,3.2078,2494.8,2494.3,13.76623863]
[1747776707414,0.80134,2494.8,2494.7,3.68413717]
[1747776707722,0.80134,2494.8,2494.7,4.03092455]
[1747776707920,0.80134,2494.8,2494.7,8.76623863]
[1747776709024,0.80132,2494.9,2494.7,13.76623863]
[1747776709228,0.00601311,2495.0,2494.9,3.68413717]
[1747776709417,0.80729311,2495.0,2494.9,8.41945125]
[1747776709616,0.80729311,2495.0,2494.9,10.13483863]
[1747776709812,2.81134312,2495.0,2494.9,10.13483863]
[1747776711312,2.81134312,2495.0,2494.9,7.26909588]
[1747776711516,2.81134312,2495.0,2494.9,9.78805125]
[1747776711714,2.81134312,2495.0,2494.9,7.25426945]
[1747776712022,0.80134,2494.8,2494.7,0.08486477]
[1747776712819,0.80134,2494.8,2494.7,2.60382014]
[1747776713121,2.09654,2494.8,2494.7,0.08486477]
[1747776714319,2.09654,2494.8,2494.7,2.60382014]
[1747776715031,2.09654,2494.8,2494.7,0.08486477]
[1747776715320,2.09654,2494.8,2494.7,2.60382014]
[1747776716129,0.80134,2494.8,2494.7,4.82017885]
[1747776716326,0.80134,2494.8,2494.7,8.61643422]
[1747776716524,0.80134,2494.8,2494.7,6.43566065]
[1747776716731,0.80134,2494.8,2494.7,9.3014034]
[1747776717632,0.80134,2494.8,2494.7,9.1835402]
[1747776717832,0.80134,2494.8,2494.7,9.26840497]
[1747776718531,0.00601311,2495.0,2494.7,14.26840497]
[1747776718721,0.80729311,2495.0,2494.9,7.55945282]
[1747776719130,0.80729311,2495.0,2494.9,7.9062402]
[1747776719429,0.80729311,2495.0,2494.9,9.2970402]
[1747776719635,2.00299,2495.3,2494.9,9.2970402]
[1747776719820,0.80118,2495.3,2495.2,2.85713717]
[1747776720026,0.80118,2495.3,2495.2,7.55945282]
[1747776720225,0.80118,2495.3,2495.2,7.9062402]
[1747776720632,0.00601311,2495.5,2495.2,7.9062402]
[1747776720833,0.00601311,2495.5,2495.2,0.34678738]
[1747776720834,0.80118,2495.3,2495.2,0.34678738]
[1747776721534,0.80118,2495.3,2495.2,7.9062402]
[1747776722631,0.00601311,2495.5,2495.2,7.9062402]
[1747776722835,0.80713311,2495.5,2495.4,7.55945282]
[1747776723140,0.80713311,2495.5,2495.4,7.9062402]
[1747776723329,0.00601311,2495.5,2495.4,11.1140402]
[1747776723834,0.45426262,2495.8,2495.5,0.8011]
[1747776724134,0.45426262,2495.8,2495.7,5.72675537]
[1747776724336,0.80101,2495.9,2495.7,10.76725282]
[1747776724537,0.80089,2496.2,2496.1,2.85713717]
[1747776724733,0.80089,2496.2,2496.1,7.55945282]
[1747776725232,0.66910521,2496.4,2496.1,7.55945282]
[1747776725438,0.80088,2496.3,2496.2,4.70231565]
[1747776725637,1.46993521,2496.4,2496.3,7.55945282]
[1747776725837,1.46993521,2496.4,2496.3,10.76725282]
[1747776726143,0.66910521,2496.4,2496.3,10.76725282]
[1747776726439,1.46993521,2496.4,2496.3,10.76725282]
[1747776726738,0.80472193,2496.4,2496.3,10.76725282]
[1747776726936,6.02340328,2497.2,2496.3,10.72675537]
[1747776726937,6.76790741,2497.1,2496.3,10.72675537]
[1747776727140,5.56694741,2497.1,2497.0,2.85713717]
[1747776727533,0.80072,2496.8,2496.6,3.2078]
[1747776727834,3.2078,2497.1,2496.7,3.5334051]
[1747776728041,4.0084,2497.1,2497.0,2.85713717]
[1747776728340,0.66521328,2497.2,2497.0,7.19117227]
[1747776728639,0.66521328,2497.2,2497.1,7.19114227]
[1747776729137,0.66521328,2497.2,2497.1,12.19114227]
[1747776729339,0.99781992,2497.5,2497.4,0.80051]
[1747776729540,0.99781992,2497.5,2497.4,10.39885227]
[1747776729738,0.80043,2497.7,2497.5,0.80047]
[1747776730044,0.65063339,2497.8,2497.6,5.91448926]
[1747776730335,1.45102339,2497.8,2497.7,5.11406926]
[1747776730834,1.45101339,2497.8,2497.7,5.11406926]
[1747776731035,2.00105,2497.7,2497.3,0.468]
[1747776731333,0.80044,2497.6,2497.5,0.3381818]
[1747776731734,0.80044,2497.6,2497.5,4.77588746]
[1747776733140,0.80044,2497.6,2497.5,5.11406926]
[1747776733343,0.80039,2497.8,2497.5,5.91451926]
[1747776733542,0.80041,2497.7,2497.6,2.59511389]
[1747776733743,0.80041,2497.7,2497.6,0.3381818]
[1747776733947,2.80229,2497.7,2497.6,5.11406926]
[1747776734246,0.80041,2497.7,2497.6,5.11406926]
[1747776734437,2.80229,2497.7,2497.6,5.11406926]
[1747776734640,0.80041,2497.7,2497.6,5.11406926]
[1747776734837,2.80229,2497.7,2497.6,5.11406926]
[1747776735142,2.80229,2497.7,2497.6,3.32753082]
[1747776735735,3.2078,2498.2,2497.6,3.32753082]
[1747776736044,2.00168,2498.2,2498.1,1.07059873]
[1747776736241,0.80036,2497.9,2497.7,3.54713209]
[1747776736442,2.00104,2497.7,2497.2,0.00601311]
[1747776736640,2.00173,2496.9,2496.4,3.2078]
[1747776736946,0.80078,2496.6,2496.5,3.54713209]
[1747776737133,0.80078,2496.6,2496.4,3.2078]
[1747776737134,0.8008,2496.5,2496.4,2.25693209]
[1747776737545,0.80086,2496.3,2496.2,1.29621311]
[1747776737747,0.80086,2496.3,2496.2,3.5531452]
[1747776737937,2.803865,2496.3,2496.2,3.5531452]
[1747776739139,7.803865,2496.3,2496.2,0.00601311]
[1747776739339,2.803865,2496.3,2496.2,0.00601311]
[1747776739649,7.803865,2496.3,2496.2,0.00601311]
[1747776741247,7.803865,2496.3,2496.2,0.09087788]
[1747776742747,7.79792312,2496.3,2496.2,0.09087788]
[1747776744347,2.003005,2496.3,2496.2,2.34780997]
[1747776744649,2.803865,2496.3,2496.2,2.34780997]
[1747776745248,2.003005,2496.3,2496.2,2.34780997]
[1747776745443,2.00192,2496.6,2496.2,2.34780997]
[1747776745746,0.80086,2496.4,2496.3,3.60673209]
[1747776746143,2.80378501,2496.4,2496.3,3.49155193]
[1747776747251,0.80083,2496.4,2496.3,3.49155193]
[1747776748437,3.21381311,2496.7,2496.3,3.49155193]
[1747776748643,0.8008,2496.5,2496.4,2.25693209]
[1747776748943,0.80079,2496.6,2496.4,2.25693209]
[1747776749249,0.80676311,2496.7,2496.5,2.25693209]
[1747776749444,0.80676311,2496.7,2496.5,4.44812209]
[1747776749640,0.00601311,2496.7,2496.6,2.25693209]
[1747776749841,0.00601311,2496.7,2496.6,3.05769209]
[1747776750158,1.55854741,2497.0,2496.9,0.80067]
[1747776750343,1.55854741,2497.0,2496.9,3.05760209]
[1747776750651,0.80057,2497.2,2497.0,0.80062]
[1747776750854,0.80057,2497.2,2497.0,3.05755209]
[1747776751148,0.80057,2497.2,2497.1,3.57733209]
[1747776751348,1.55854741,2497.3,2497.1,1.3204]
[1747776751538,4.36133241,2497.3,2497.2,3.57733209]
[1747776751743,2.35908741,2497.3,2497.2,1.3204]
[1747776751943,4.36128741,2497.3,2497.2,2.811374]
[1747776752442,17.8608,2497.6,2497.2,2.811374]
[1747776752638,0.80051,2497.4,2497.3,2.25693209]
[1747776752851,0.80051,2497.4,2497.2,3.05750209]
[1747776753044,17.8608,2497.6,2497.0,4.25848209]
[1747776753244,0.80046,2497.6,2497.4,0.8005]
[1747776753450,0.80044,2497.6,2497.3,0.80051]
[1747776753846,0.80046,2497.6,2497.4,2.25693209]
[1747776754046,4.76634741,2497.7,2497.3,2.25693209]
[1747776754252,4.76634741,2497.7,2497.6,2.25693209]
[1747776754253,0.80041,2497.7,2497.6,2.25693209]
[1747776754651,2.80229,2497.7,2497.6,2.25693209]
[1747776754853,2.00188,2497.7,2497.6,3.05737209]
[1747776755055,1.55854741,2498.0,2497.6,3.61433209]
[1747776755255,1.55854741,2498.0,2497.8,0.80037]
[1747776755256,2.35887741,2498.0,2497.8,0.80037]
[1747776755556,1.55854741,2498.0,2497.9,4.41468209]
[1747776755948,0.99781992,2498.2,2498.1,0.80028]
[1747776756147,0.99781992,2498.2,2498.1,6.26501209]
[1747776757754,3.67924586,2498.5,2498.4,0.80019]
[1747776757955,3.67924586,2498.5,2498.4,3.2078]
[1747776758158,3.67924586,2498.5,2498.4,5.46473209]
[1747776758361,2.12069845,2498.5,2498.4,5.46473209]
[1747776758556,1.3814,2498.9,2498.4,6.26490209]
[1747776758757,0.80012,2498.6,2498.5,3.54553209]
[1747776759160,2.00116,2498.6,2498.5,3.54553209]
[1747776759464,0.80012,2498.6,2498.5,3.54553209]
[1747776759660,1.3814,2498.9,2498.5,3.54553209]
[1747776759862,0.80009,2498.7,2498.6,2.25693209]
[1747776760257,2.80117,2498.7,2498.6,2.25693209]
[1747776761164,2.00108,2498.7,2498.6,2.25693209]
[1747776761365,1.3769,2498.9,2498.6,2.25693209]
[1747776761556,2.00100001,2498.9,2498.7,3.64803209]
[1747776761756,2.00100001,2498.9,2498.8,1.3911]
[1747776762065,0.80001,2499.0,2498.8,1.3911]
[1747776762261,0.80003,2498.9,2498.8,1.3911]
[1747776762464,1.3769,2498.9,2498.1,3.2078]
[1747776762766,0.80025,2498.2,2498.1,6.85583209]
[1747776763267,2.80173,2498.2,2498.1,3.64803209]
[1747776764162,2.00148,2498.2,2498.1,3.64803209]
[1747776764363,2.80173,2498.2,2498.1,3.64803209]
[1747776764663,4.08743,2498.2,2498.1,3.64803209]
[1747776765358,4.08743,2498.2,2498.1,1.86168466]
[1747776766564,3.28718,2498.2,2498.1,1.86168466]
[1747776766765,2.00148,2498.2,2498.1,1.86168466]
[1747776766959,2.20814,2498.3,2498.1,1.86168466]
[1747776767160,2.20814,2498.3,2498.2,1.86168466]
[1747776767363,0.80026,2498.2,2498.0,1.86168466]
[1747776767566,2.20816,2498.2,2498.0,1.86168466]
[1747776767863,2.20816,2498.2,2498.1,1.86168466]
[1747776768166,2.20816,2498.2,2498.0,1.86168466]
[1747776768558,0.80025,2498.2,2498.1,3.15538466]
[1747776770769,1.4079,2498.5,2498.1,5.88762905]
[1747776771070,0.80023,2498.3,2498.2,1.86168466]
[1747776771263,1.4079,2498.5,2498.2,2.66193466]
[1747776771571,0.80019,2498.4,2498.3,1.86168466]
[1747776771760,0.80023,2498.3,2498.2,1.86168466]
[1747776772365,0.80021,2498.4,2498.2,1.86168466]
[1747776772562,0.80019,2498.4,2498.3,1.86168466]
[1747776776969,1.4079,2498.5,2498.3,1.86168466]
[1747776777173,2.20806,2498.5,2498.4,1.86168466]
[1747776778268,4.2093,2498.5,2498.4,1.86168466]
[1747776778572,3.40914,2498.5,2498.4,2.66187466]
[1747776778773,2.20806,2498.5,2498.4,1.86168466]
[1747776779175,4.2093,2498.5,2498.4,5.06948466]
[1747776779376,2.20806,2498.5,2498.4,5.06948466]